bitfinex-derivatives/quotes_SOLF0:USTF0_20250703
["timestamp","ask_amount","ask_price","bid_price","bid_amount"]
[1751541917244,6.4599,154.75,154.74,230.34]
[1751541917446,8.80987247,154.75,154.74,230.34]
[1751541918158,8.80987247,154.75,154.74,186.2]
[1751541918353,6.4613,154.72,154.71,186.2]
[1751541918555,2.34997247,154.72,154.71,186.2]
[1751541919554,8.81107247,154.72,154.71,186.2]
[1751541920163,6.4611,154.72,154.71,186.2]
[1751541920360,8.81107247,154.72,154.71,186.2]
[1751541941868,2.34997247,154.72,154.64,230.36]
[1751541942168,2.34997247,154.65,154.64,230.36]
[1751541942465,8.81397247,154.65,154.64,44.14]
[1751541943064,8.81397247,154.65,154.62,186.22]
[1751541943268,2.34997247,154.63,154.6,230.34]
[1751541943472,2.34997247,154.62,154.6,230.34]
[1751541943769,2.34997247,154.62,154.6,236.8061]
[1751541944063,2.34997247,154.62,154.6,230.34]
[1751541944267,2.34997247,154.63,154.61,6.4654]
[1751541944467,2.34997247,154.63,154.6,232.68997247]
[1751541944668,2.34997247,154.64,154.6,232.68997247]
[1751541944868,2.34997247,154.64,154.62,6.4653]
[1751541945069,2.34997247,154.66,154.63,186.22]
[1751541945667,6.6382,154.71,154.63,186.22]
[1751541945668,2.34997247,154.67,154.63,188.56997247]
[1751541945869,2.34997247,154.69,154.65,2.34997247]
[1751541946069,2.34997247,154.7,154.66,186.22]
[1751541946264,2.34997247,154.7,154.67,6.463]
[1751541946265,8.81207247,154.7,154.67,6.463]
[1751541947771,6.4621,154.7,154.67,6.463]
[1751541949670,10.13842988,154.71,154.66,186.22]
[1751541949874,3.67672988,154.71,154.66,186.22]
[1751541951663,6.4619,154.7,154.68,6.4626]
[1751541963682,3.67672988,154.71,154.68,6.4626]
[1751541964579,6.462,154.7,154.68,6.4626]
[1751541965385,6.462,154.7,154.66,186.22]
[1751541965885,10.13842988,154.71,154.68,6.4625]
[1751541966386,3.67672988,154.73,154.69,6.462]
[1751541966887,6.4615,154.71,154.69,6.462]
[1751541967787,8.81422644,154.71,154.69,6.462]
[1751541971493,2.35272644,154.72,154.69,2.35272644]
[1751541972184,2.35272644,154.72,154.69,8.81482644]
[1751541972185,6.4616,154.71,154.69,8.81482644]
[1751541972388,6.4616,154.71,154.69,6.4621]
[1751541974596,8.81432644,154.71,154.68,8.81532644]
[1751541974793,8.81432644,154.71,154.68,2.35272644]
[1751541975191,2.35272644,154.71,154.69,6.4622]
[1751541975495,2.35272644,154.72,154.69,2.35272644]
[1751541976193,8.81392644,154.72,154.7,50.5817]
[1751541978099,6.4612,154.72,154.7,50.5817]
[1751541978297,2.35272644,154.73,154.71,6.4614]
[1751541980100,2.35272644,154.73,154.72,6.4611]
[1751541980296,6.4607,154.74,154.72,6.4611]
[1751541980297,8.81342644,154.74,154.72,6.4611]
[1751541980692,8.81352644,154.73,154.71,6.4613]
[1751541986207,8.81352644,154.73,154.7,50.5817]
[1751541988605,6.4612,154.72,154.7,50.5817]
[1751541989113,8.81362644,154.73,154.71,6.4615]
[1751541991611,6.4605,154.74,154.72,6.461]
[1751541991811,8.81322644,154.74,154.72,6.461]
[1751541992914,6.4607,154.73,154.71,6.4613]
[1751541993718,8.81342644,154.73,154.71,6.4613]
[1751541996405,6.4611,154.72,154.7,44.12]
[1751541997615,8.81362644,154.73,154.7,44.12]
[1751541998615,8.81362644,154.73,154.71,6.4615]
[1751542006518,6.4609,154.73,154.71,6.4615]
[1751542013720,8.81362644,154.73,154.71,6.4615]
[1751542014617,2.35272644,154.74,154.7,46.47272644]
[1751542014817,6.02413634,154.77,154.71,2.35272644]
[1751542014818,2.35272644,154.75,154.71,2.35272644]
[1751542015018,2.35272644,154.76,154.72,2.35272644]
[1751542015325,6.4601,154.75,154.73,6.4605]
[1751542016818,8.81232644,154.76,154.74,6.4603]
[1751542017714,6.4596,154.76,154.74,6.4603]
[1751542021327,107.15942287,154.79,154.75,44.06]
[1751542021528,2.35272644,154.76,154.75,44.06]
[1751542022131,2.35272644,154.76,154.75,50.5198]
[1751542022531,8.81192644,154.77,154.75,50.5198]
[1751542023330,6.4594,154.76,154.75,44.06]
[1751542023733,8.81212644,154.76,154.75,44.06]
[1751542024329,2.35272644,154.76,154.75,44.06]
[1751542025323,8.81212644,154.76,154.75,44.06]
[1751542027336,6.4601,154.75,154.73,6.4603]
[1751542029339,6.4603,154.74,154.72,52.87362644]
[1751542029535,2.35272644,154.76,154.72,52.87362644]
[1751542029729,2.35272644,154.75,154.72,52.87362644]
[1751542030137,8.81282644,154.75,154.72,52.87362644]
[1751542030437,8.81282644,154.75,154.73,6.4607]
[1751542031943,8.81282644,154.75,154.72,50.5209]
[1751542032841,6.4603,154.74,154.72,50.5209]
[1751542034541,8.81272644,154.75,154.73,6.4607]
[1751542035142,8.81272644,154.75,154.72,50.5209]
[1751542037150,8.81272644,154.75,154.73,6.4606]
[1751542038546,6.4603,154.74,154.72,50.5209]
[1751542039547,8.81282644,154.75,154.72,50.5209]
[1751542040056,6.4604,154.74,154.72,50.5209]
[1751542040649,2.35272644,154.74,154.72,44.06]
[1751542040857,2.35272644,154.73,154.72,44.06]
[1751542042652,8.81342644,154.73,154.72,44.06]
[1751542045455,6.4616,154.71,154.69,192.4221]
[1751542045653,8.81432644,154.71,154.69,192.4221]
[1751542045854,2.35272644,154.71,154.69,192.4221]
[1751542052156,2.35272644,154.71,154.7,6.4619]
[1751542052352,2.35272644,154.74,154.7,2.35272644]
[1751542052965,8.81322644,154.74,154.71,6.4613]
[1751542054564,8.81322644,154.74,154.7,2.35272644]
[1751542054565,8.81322644,154.74,154.72,6.461]
[1751542055660,8.81322644,154.74,154.7,2.35272644]
[1751542055661,8.81322644,154.74,154.71,6.4613]
[1751542055866,6.4607,154.73,154.71,6.4613]
[1751542058767,8.81342644,154.73,154.71,6.4613]
[1751542058962,2.35272644,154.72,154.7,44.04]
[1751542059968,6.02413634,154.77,154.7,44.04]
[1751542060271,2.35272644,154.72,154.7,44.04]
[1751542060568,8.81422644,154.72,154.7,44.04]
[1751542061070,8.81422644,154.72,154.7,50.5019]
[1751542062071,2.35272644,154.73,154.7,44.04]
[1751542062275,2.35272644,154.74,154.7,44.04]
[1751542062666,8.81322644,154.74,154.72,6.4611]
[1751542063873,2.35272644,154.73,154.7,44.04]
[1751542064065,2.35272644,154.71,154.66,46.3172]
[1751542064265,2.35272644,154.69,154.67,185.94]
[1751542064670,8.81542644,154.69,154.67,192.4031]
[1751542065166,2.35272644,154.69,154.67,185.94]
[1751542066071,8.81532644,154.69,154.67,192.4031]
[1751542067267,2.3507,154.74,154.68,6.4626]
[1751542067468,2.35272644,154.72,154.68,2.35272644]
[1751542067978,8.81422644,154.72,154.69,6.4621]
[1751542068172,2.35272644,154.71,154.7,185.94]
[1751542069977,8.81442644,154.71,154.7,185.94]
[1751542074283,6.02413634,154.75,154.7,185.94]
[1751542074483,2.35272644,154.76,154.72,2.35272644]
[1751542074779,2.35272644,154.76,154.73,2.35272644]
[1751542074977,2.35272644,154.76,154.74,185.92]
[1751542075681,8.81252644,154.76,154.74,192.3804]
[1751542076686,2.35272644,154.75,154.74,185.92]
[1751542077784,6.4598,154.76,154.74,185.92]
[1751542079287,6.4598,154.76,154.74,192.3804]
[1751542088887,6.46,154.75,154.74,185.92]
[1751542089289,3.67418522,154.78,154.74,185.92]
[1751542089492,6.4599,154.76,154.74,185.92]
[1751542091101,6.46,154.75,154.74,185.92]
[1751542096399,3.67418522,154.76,154.68,8.0557917]
[1751542096598,3.67418522,154.76,154.69,229.88]
[1751542097101,6.4612,154.73,154.7,6.4619]
[1751542098099,6.4612,154.73,154.71,185.86]
[1751542099001,6.4612,154.73,154.7,6.4619]
[1751542099197,3.67418522,154.76,154.71,185.86]
[1751542099500,3.67418522,154.76,154.7,6.4619]
[1751542099697,3.67418522,154.76,154.71,185.86]
[1751542099899,8.81354544,154.73,154.71,185.86]
[1751542103197,8.81374544,154.72,154.69,50.4824]
[1751542103405,8.81374544,154.72,154.7,185.86]
[1751542103700,8.81414544,154.71,154.69,50.4824]
[1751542103898,2.35244544,154.7,154.66,44.02]
[1751542104090,2.35244544,154.69,154.67,185.86]
[1751542104493,2.35244544,154.69,154.67,192.3231]
[1751542104699,2.35244544,154.69,154.67,6.4631]
[1751542104892,2.35244544,154.69,154.68,185.86]
[1751542106004,8.81494544,154.69,154.67,6.4631]
[1751542106300,2.35244544,154.69,154.68,6.4629]
[1751542106501,2.35244544,154.7,154.68,192.3429]
[1751542107004,8.81474544,154.7,154.68,185.88]
[1751542107503,2.35244544,154.69,154.66,50.4836]
[1751542107706,2.35244544,154.69,154.67,185.88]
[1751542108105,8.81514544,154.69,154.67,185.88]
[1751542108611,6.4632,154.68,154.66,44.02]
[1751542108807,6.4632,154.68,154.67,185.88]
[1751542111505,8.81564544,154.68,154.67,185.88]
[1751542112804,6.4634,154.67,154.66,44.02]
[1751542113013,2.35244544,154.68,154.67,185.9]
[1751542113812,2.35244544,154.68,154.66,50.4838]
[1751542114013,2.35244544,154.68,154.67,185.88]
[1751542114511,6.4631,154.68,154.67,185.88]
[1751542115318,6.4626,154.69,154.67,192.3433]
[1751542115912,6.4626,154.69,154.67,185.88]
[1751542117110,6.4634,154.67,154.65,558.26]
[1751542117314,8.81584544,154.67,154.66,185.9]
[1751542118513,6.4634,154.67,154.66,185.9]
[1751542118710,8.81564544,154.68,154.66,185.9]
[1751542119214,8.81564544,154.68,154.66,6.4637]
[1751542119413,6.4632,154.68,154.67,185.9]
[1751542119611,6.4627,154.69,154.67,185.9]
[1751542119811,6.4627,154.69,154.67,192.3631]
[1751542120014,6.4627,154.69,154.67,185.9]
[1751542121417,2.35244544,154.69,154.68,185.9]
[1751542121820,3.67788415,154.7,154.68,185.9]
[1751542122023,6.4625,154.69,154.68,185.9]
[1751542122822,3.67788415,154.7,154.67,185.9]
[1751542124521,6.4629,154.68,154.67,185.9]
[1751542124821,6.4629,154.68,154.65,564.7241]
[1751542125018,6.4629,154.68,154.66,185.9]
[1751542125422,6.4634,154.67,154.66,185.9]
[1751542126623,6.4632,154.68,154.66,185.9]
[1751542130920,6.4632,154.68,154.65,564.7242]
[1751542131125,6.4632,154.68,154.67,185.9]
[1751542133325,6.4627,154.69,154.67,185.9]
[1751542134619,6.4629,154.68,154.67,185.9]
[1751542134818,3.67788415,154.7,154.67,185.9]
[1751542135529,6.4629,154.69,154.67,185.9]
[1751542136731,3.67788415,154.7,154.65,558.26]
[1751542136925,3.67788415,154.7,154.65,744.16]
[1751542137429,6.4635,154.67,154.65,744.16]
[1751542138528,6.4635,154.67,154.65,750.6241]
[1751542139726,6.4635,154.67,154.65,185.9]
[1751542141831,8.81765445,154.67,154.65,185.9]
[1751542142730,6.4638,154.66,154.64,236.3644]
[1751542143535,8.81765445,154.67,154.64,236.3644]
[1751542145934,8.81765445,154.67,154.64,50.4644]
[1751542146136,8.81765445,154.67,154.65,185.9]
[1751542147640,6.4638,154.66,154.65,185.9]
[1751542149740,2.35415445,154.67,154.65,185.9]
[1751542149741,6.4635,154.67,154.65,185.9]
[1751542150038,2.35415445,154.67,154.65,185.9]
[1751542150338,8.81775445,154.67,154.65,185.9]
[1751542150538,2.35415445,154.67,154.65,185.9]
[1751542151531,6.4638,154.66,154.65,185.9]
[1751542155641,8.81775445,154.67,154.65,185.9]
[1751542157149,2.35415445,154.66,154.62,2.207]
[1751542157339,2.35415445,154.65,154.62,2.207]
[1751542157539,6.4646,154.64,154.62,8.6722]
[1751542160543,8.81875445,154.64,154.62,8.6722]
[1751542160744,6.4654,154.62,154.61,44.02]
[1751542161141,2.35415445,154.63,154.61,44.02]
[1751542161342,6.4652,154.63,154.61,44.02]
[1751542161546,6.4652,154.63,154.61,50.4858]
[1751542162246,8.81935445,154.63,154.61,50.4858]
[1751542164152,6.4654,154.62,154.61,44.02]
[1751542164556,8.81955445,154.62,154.61,44.02]
[1751542165648,6.4663,154.6,154.58,2.2879]
[1751542166041,6.4663,154.6,154.57,243.17425445]
[1751542166649,6.4663,154.6,154.58,6.4671]
[1751542167750,6.4663,154.6,154.58,8.82125445]
[1751542169157,6.4667,154.59,154.58,2.35415445]
[1751542169456,2.35415445,154.59,154.57,44.0]
[1751542169649,2.35415445,154.59,154.57,229.92]
[1751542170047,2.35415445,154.59,154.57,50.4675]
[1751542170048,8.82105445,154.59,154.57,50.4675]
[1751542170649,8.82065445,154.6,154.57,52.82165445]
[1751542170852,6.4665,154.6,154.57,52.82165445]
[1751542171461,2.35415445,154.61,154.57,52.82165445]
[1751542171958,6.4667,154.59,154.57,52.82165445]
[1751542172159,2.35415445,154.59,154.57,44.0]
[1751542173250,6.4671,154.58,154.57,44.0]
[1751542176060,8.82125445,154.58,154.57,44.0]
[1751542176855,6.4683,154.56,154.53,57.35495445]
[1751542177150,2.35415445,154.56,154.53,44.02]
[1751542177355,6.4688,154.54,154.53,44.02]
[1751542177761,2.35415445,154.55,154.53,44.02]
[1751542178056,6.4685,154.55,154.53,44.02]
[1751542179358,6.4688,154.54,154.53,44.02]
[1751542179559,8.82295445,154.54,154.53,44.02]
[1751542180060,6.4688,154.54,154.53,44.02]
[1751542180862,2.35415445,154.56,154.53,46.37415445]
[1751542181759,2.35415445,154.56,154.53,52.84295445]
[1751542181760,8.82215445,154.56,154.53,52.84295445]
[1751542181951,2.35415445,154.57,154.53,46.37415445]
[1751542182156,2.35415445,154.56,154.53,46.37415445]
[1751542182364,6.695,154.61,154.53,44.02]
[1751542182559,6.4687,154.55,154.53,44.02]
[1751542183560,6.4687,154.55,154.53,50.4891]
[1751542185666,8.82225445,154.56,154.53,52.84325445]
[1751542186155,2.35415445,154.56,154.53,44.02]
[1751542186367,2.35415445,154.54,154.53,44.02]
[1751542187165,8.82295445,154.54,154.53,44.02]
[1751542188462,6.4697,154.52,154.5,2.3276]
[1751542188668,2.35415445,154.52,154.49,50.72205445]
[1751542188970,2.35415445,154.53,154.49,50.72205445]
[1751542189570,6.4697,154.52,154.5,6.4702]
[1751542190869,6.4701,154.51,154.49,238.82475445]
[1751542191074,6.4701,154.51,154.49,52.84475445]
[1751542191263,6.4701,154.51,154.49,50.4906]
[1751542191468,6.4701,154.51,154.49,44.02]
[1751542191969,6.4701,154.51,154.49,50.4908]
[1751542193565,6.4698,154.52,154.5,6.4704]
[1751542194073,6.4698,154.52,154.49,46.37415445]
[1751542195573,6.4698,154.52,154.5,6.4704]
[1751542196374,6.4698,154.52,154.49,46.37415445]
[1751542197576,6.4698,154.52,154.5,6.4705]
[1751542200082,8.82395445,154.52,154.5,6.4705]
[1751542200577,19.6271,154.61,154.51,6.47]
[1751542200784,2.35415445,154.53,154.51,6.47]
[1751542200983,2.35415445,154.53,154.49,46.37415445]
[1751542201384,8.82365445,154.53,154.5,6.4702]
[1751542202174,87.81962076,154.57,154.51,2.35415445]
[1751542202482,2.35415445,154.58,154.54,2.35415445]
[1751542202676,2.35415445,154.58,154.54,8.82265445]
[1751542202878,6.4677,154.57,154.54,8.82265445]
[1751542203181,8.82185445,154.57,154.54,8.82265445]
[1751542203484,6.468,154.56,154.54,8.82265445]
[1751542203681,6.468,154.56,154.54,6.4685]
[1751542204383,6.468,154.56,154.51,192.06146243]
[1751542204384,3.68286243,154.59,154.53,6.4691]
[1751542204780,3.68286243,154.57,154.53,6.4691]
[1751542205883,6.4685,154.55,154.53,6.4691]
[1751542206385,6.4681,154.56,154.53,6.4691]
[1751542207683,6.4681,154.56,154.54,6.4687]
[1751542208589,6.4684,154.55,154.53,6.469]
[1751542209185,6.4684,154.55,154.53,6.4692]
[1751542209589,3.68286243,154.55,154.49,44.02]
[1751542209789,3.68286243,154.53,154.49,44.02]
[1751542210387,3.68286243,154.51,154.46,5.17395019]
[1751542210687,3.68286243,154.49,154.46,5.17395019]
[1751542211089,6.8528,154.55,154.46,5.17395019]
[1751542211289,3.68286243,154.5,154.46,5.17395019]
[1751542211889,6.471,154.49,154.46,5.17395019]
[1751542212284,6.8528,154.55,154.46,11.64595019]
[1751542212492,3.68286243,154.5,154.46,11.64595019]
[1751542212891,3.68286243,154.5,154.46,5.17395019]
[1751542213289,84.27855364,154.54,154.46,5.17395019]
[1751542213290,10.15316243,154.51,154.46,5.17395019]
[1751542213492,3.68286243,154.51,154.47,6.4715]
[1751542213992,6.4705,154.5,154.46,11.64595019]
[1751542214196,3.68286243,154.49,154.46,11.64595019]
[1751542214391,3.68286243,154.49,154.46,5.17395019]
[1751542215292,3.68286243,154.47,154.46,5.17395019]
[1751542215696,6.4715,154.48,154.46,5.17395019]
[1751542216098,3.68286243,154.47,154.46,5.17395019]
[1751542216297,10.15456243,154.47,154.46,5.17395019]
[1751542218698,3.68286243,154.48,154.46,5.17395019]
[1751542219305,10.15446243,154.48,154.46,5.17395019]
[1751542219688,6.471,154.49,154.46,5.17395019]
[1751542219996,3.68286243,154.52,154.46,5.17395019]
[1751542221199,10.15336243,154.5,154.47,6.4714]
[1751542221400,84.27855364,154.54,154.46,5.17395019]
[1751542221605,3.68286243,154.51,154.46,5.17395019]
[1751542221794,3.68286243,154.51,154.46,49.21395019]
[1751542221996,6.4708,154.5,154.47,6.4716]
[1751542222493,10.15366243,154.5,154.46,49.21395019]
[1751542222697,10.15366243,154.5,154.46,55.68595019]
[1751542222892,6.471,154.49,154.46,55.68595019]
[1751542223502,84.27855364,154.54,154.46,49.21395019]
[1751542223800,3.68286243,154.48,154.46,49.21395019]
[1751542224200,6.4717,154.47,154.46,49.21395019]
[1751542226200,6.4717,154.47,154.46,5.17395019]
[1751542230405,7.36572486,154.48,154.4,558.92]
[1751542230601,3.68286243,154.44,154.4,558.92]
[1751542230803,3.68286243,154.44,154.39,6.4748]
[1751542231002,6.4741,154.42,154.39,6.4748]
[1751542233208,6.4744,154.41,154.38,51.1353]
[1751542233401,3.68286243,154.42,154.38,51.1353]
[1751542233705,7.36572486,154.4,154.27,44.66]
[1751542233899,51.4516,154.39,154.28,3.68286243]
[1751542234101,3.68286243,154.39,154.32,3.68286243]
[1751542234301,3.68286243,154.37,154.32,44.66]
[1751542234708,10.15896243,154.37,154.32,44.66]
[1751542234900,3.68286243,154.37,154.32,44.66]
[1751542235410,6.4765,154.36,154.32,44.66]
[1751542235701,6.4765,154.36,154.33,6.4776]
[1751542235901,3.68286243,154.36,154.32,44.66]
[1751542236405,3.68286243,154.36,154.33,6.4773]
[1751542236705,10.15916243,154.36,154.33,6.4773]
[1751542236901,3.68286243,154.36,154.34,6.4771]
[1751542237104,3.68286243,154.37,154.32,44.66]
[1751542240607,3.68286243,154.41,154.35,3.68286243]
[1751542240908,3.68286243,154.41,154.39,6.475]
[1751542241508,3.68286243,154.41,154.38,6.4754]
[1751542241912,10.15736243,154.41,154.38,6.4754]
[1751542242108,3.68286243,154.41,154.39,6.475]
[1751542242313,89.6349183,154.46,154.39,6.475]
[1751542242516,3.68286243,154.42,154.35,3.68286243]
[1751542242914,10.15676243,154.42,154.35,3.68286243]
[1751542243112,3.68286243,154.45,154.41,6.474]
[1751542243610,10.15556243,154.45,154.42,6.4734]
[1751542244010,3.68286243,154.45,154.39,3.68286243]
[1751542244219,96.1072183,154.46,154.43,6.4731]
[1751542244513,89.6349183,154.46,154.43,6.4731]
[1751542245116,3.68286243,154.45,154.4,4.4905]
[1751542246520,6.4731,154.44,154.4,4.4905]
[1751542247113,6.4731,154.44,154.41,6.4738]
[1751542247615,10.15556243,154.45,154.4,4.4905]
[1751542247810,89.6349183,154.46,154.4,8.17336243]
[1751542248015,89.6349183,154.46,154.41,2.141]
[1751542248217,89.6349183,154.46,154.43,6.4733]
[1751542248721,96.1074183,154.46,154.43,6.4733]
[1751542249820,89.6349183,154.46,154.44,6.4729]
[1751542250020,89.6349183,154.46,154.41,2.141]
[1751542250428,89.6349183,154.46,154.44,6.4727]
[1751542250627,89.6349183,154.46,154.41,2.141]
[1751542251122,89.6349183,154.46,154.44,6.4727]
[1751542252526,96.1071183,154.46,154.44,6.4727]
[1751542254628,10.15496243,154.47,154.44,6.4727]
[1751542254829,3.68286243,154.47,154.43,6.4731]
[1751542255031,6.4725,154.46,154.43,6.4731]
[1751542255329,6.4725,154.46,154.41,2.141]
[1751542255730,10.15476243,154.47,154.44,6.4727]
[1751542256531,6.4721,154.46,154.44,6.4727]
[1751542258432,3.68827781,154.48,154.41,2.141]
[1751542259127,3.68788481,154.48,154.41,5.82888481]
[1751542259533,6.4719,154.47,154.44,6.4726]
[1751542259733,6.4719,154.47,154.41,2.141]
[1751542260334,6.4719,154.47,154.45,6.4723]
[1751542260827,2.1514,154.51,154.45,6.4723]
[1751542261138,559.2,154.53,154.47,6.4715]
[1751542261139,3.68680574,154.5,154.47,6.4715]
[1751542261728,6.4709,154.49,154.47,6.4715]
[1751542263434,6.4709,154.49,154.46,6.472]
[1751542263839,6.4714,154.48,154.43,48.38680574]
[1751542264035,3.68680574,154.46,154.43,44.7]
[1751542264239,3.68680574,154.44,154.43,44.7]
[1751542264634,6.4728,154.45,154.43,44.7]
[1751542264832,10.15960574,154.45,154.43,44.7]
[1751542265038,3.68680574,154.45,154.43,44.7]
[1751542265943,3.68680574,154.48,154.43,44.7]
[1751542266333,3.68680574,154.48,154.46,6.472]
[1751542267242,46.9659,154.54,154.43,44.7]
[1751542267243,3.68680574,154.5,154.43,48.38680574]
[1751542267745,6.4711,154.49,154.46,6.4718]
[1751542268241,6.4711,154.49,154.43,48.38680574]
[1751542268843,6.4711,154.49,154.43,44.7]
[1751542269138,6.4711,154.49,154.46,6.4719]
[1751542269735,6.4715,154.48,154.45,6.4723]
[1751542269934,10.15830574,154.48,154.45,6.4723]
[1751542270541,3.68680574,154.46,154.43,44.7]
[1751542272245,10.15920574,154.46,154.43,44.7]
[1751542272440,18.92745991,154.53,154.43,44.7]
[1751542272644,3.68680574,154.48,154.43,44.7]
[1751542273036,6.4718,154.47,154.43,44.7]
[1751542273447,6.4718,154.47,154.44,6.4726]
[1751542274749,6.4718,154.47,154.44,6.4729]
[1751542275447,6.4718,154.47,154.45,6.4725]
[1751542276744,10.15830574,154.48,154.46,6.472]
[1751542277151,6.4719,154.47,154.43,44.7]
[1751542277341,3.68680574,154.49,154.43,44.7]
[1751542277744,6.4715,154.48,154.43,44.7]
[1751542277949,3.68680574,154.49,154.43,48.38680574]
[1751542278447,6.4714,154.48,154.43,48.38680574]
[1751542278650,3.68680574,154.49,154.43,48.38680574]
[1751542279251,6.4713,154.48,154.46,6.4719]
[1751542281854,6.4717,154.47,154.43,44.7]
[1751542282444,6.4717,154.47,154.44,6.4727]
[1751542282650,6.4717,154.47,154.43,44.7]
[1751542283253,6.4717,154.47,154.44,6.4726]
[1751542284761,6.4717,154.47,154.45,6.4724]
[1751542285453,3.68680574,154.49,154.45,6.4724]
[1751542285660,6.4715,154.48,154.45,6.4724]
[1751542286560,6.4715,154.48,154.46,6.4721]
[1751542287060,6.4715,154.48,154.43,48.38680574]
[1751542287462,6.4715,154.48,154.45,6.4723]
[1751542291965,6.4715,154.48,154.43,48.38680574]
[1751542292666,6.4717,154.47,154.45,6.4723]
[1751542293568,3.68680574,154.49,154.45,6.4723]
[1751542294270,6.4714,154.48,154.45,6.4723]
[1751542296068,6.4714,154.48,154.46,6.4721]
[1751542297568,6.4714,154.48,154.45,6.4724]
[1751542297769,6.472,154.47,154.43,44.7]
[1751542299576,6.472,154.47,154.45,6.4725]
[1751542300062,6.4716,154.48,154.45,6.4725]
[1751542303476,6.4708,154.5,154.43,48.38777165]
[1751542303676,6.4708,154.5,154.44,3.68664422]
[1751542303877,6.4708,154.5,154.47,6.4714]
[1751542305978,3.68664422,154.51,154.48,6.4712]
[1751542306478,6.4709,154.5,154.47,6.4716]
[1751542306779,3.68664422,154.52,154.47,6.4716]
[1751542307078,3.68664422,154.48,154.43,44.7]
[1751542307478,3.68664422,154.48,154.44,6.4727]
[1751542308279,6.4721,154.47,154.44,6.4727]
[1751542310889,3.68664422,154.48,154.43,51.1733]
[1751542311483,6.4723,154.46,154.43,51.1733]
[1751542311888,6.473,154.45,154.43,44.7]
[1751542312080,6.03220871,154.49,154.38,8.0557917]
[1751542312278,3.68664422,154.44,154.39,44.8]
[1751542312483,6.4739,154.42,154.4,6.4747]
[1751542312683,6.4739,154.42,154.39,44.8]
[1751542313084,6.4739,154.42,154.39,51.2748]
[1751542313778,6.4743,154.41,154.39,44.8]
[1751542313978,3.68664422,154.43,154.39,44.8]
[1751542314181,3.68664422,154.41,154.39,44.8]
[1751542314384,6.4747,154.4,154.39,44.8]
[1751542315577,10.16114422,154.41,154.39,44.8]
[1751542316684,6.4747,154.4,154.39,44.8]
[1751542317980,6.4744,154.41,154.39,44.8]
[1751542318890,3.68664422,154.4,154.37,559.24]
[1751542319481,6.4751,154.39,154.37,565.7157]
[1751542319687,3.68664422,154.4,154.37,565.7157]
[1751542320088,10.16164422,154.4,154.37,565.7157]
[1751542320392,3.68664422,154.4,154.37,565.7157]
[1751542321193,6.4755,154.38,154.35,44.62]
[1751542321488,3.68664422,154.38,154.35,44.62]
[1751542321797,6.4762,154.37,154.35,44.62]
[1751542322292,6.4763,154.36,154.35,44.62]
[1751542322597,6.4763,154.36,154.33,6.4774]
[1751542323595,6.4761,154.37,154.34,6.4771]
[1751542323997,6.4761,154.37,154.35,6.4767]
[1751542324496,6.4761,154.37,154.32,187.68]
[1751542324695,6.4761,154.37,154.34,6.4769]
[1751542326100,4.556,154.42,154.33,3.68664422]
[1751542326298,3.68664422,154.41,154.35,3.68664422]
[1751542326503,80.54347354,154.43,154.37,3.68664422]
[1751542326699,80.54347354,154.43,154.39,3.68664422]
[1751542327095,80.54347354,154.43,154.42,6.4738]
[1751542327297,8.06394422,154.46,154.42,6.4738]
[1751542327802,6.473,154.44,154.41,6.474]
[1751542328199,3.68664422,154.46,154.4,6.4744]
[1751542328502,3.68664422,154.44,154.37,10.35354422]
[1751542328895,10.15994422,154.44,154.41,6.474]
[1751542329796,6.4735,154.43,154.41,6.474]
[1751542330002,3.68664422,154.44,154.41,6.474]
[1751542330199,10.15984422,154.44,154.37,10.35354422]
[1751542330595,6.4732,154.44,154.39,3.68664422]
[1751542330794,6.4732,154.44,154.41,6.474]
[1751542332704,6.4738,154.42,154.4,6.4745]